[Event "*** Titled Tuesday Blitz"]
[Site "Chess.com"]
[Date "2021.02.16"]
[Round "5"]
[White "volunteers1998"]
[Black "Chesspirate_Channel"]
[Result "1-0"]
[WhiteElo "2107"]
[BlackElo "2296"]
[TimeControl "180+1"]
[EndTime "10:56:43 PST"]
[Termination "volunteers1998 won on time"]

1. e4 {[%clk 0:03:00.9]} 1... e5 {[%clk 0:02:59.6]} 2. Nc3 {[%clk 0:02:58.8]}
2... f5 {[%clk 0:02:57.9]} 3. exf5 {[%clk 0:02:55.5]} 3... Nf6 {[%clk
0:02:57.2]} 4. Nf3 {[%clk 0:02:46.7]} 4... e4 {[%clk 0:02:51.3]} 5. Ng5 {[%clk
0:02:43.6]} 5... d5 {[%clk 0:02:51]} 6. d3 {[%clk 0:02:41.1]} 6... h6 {[%clk
0:02:47.4]} 7. Ne6 {[%clk 0:02:38]} 7... Bxe6 {[%clk 0:02:42.8]} 8. fxe6 {[%clk
0:02:37]} 8... Bb4 {[%clk 0:02:36.8]} 9. dxe4 {[%clk 0:02:34.2]} 9... Bxc3+
{[%clk 0:02:10.7]} 10. bxc3 {[%clk 0:02:30.2]} 10... O-O {[%clk 0:02:10.6]} 11.
exd5 {[%clk 0:02:25.2]} 11... Nxd5 {[%clk 0:02:11.5]} 12. Bc4 {[%clk 0:02:21.8]}
12... c6 {[%clk 0:02:03.9]} 13. O-O {[%clk 0:02:20.8]} 13... Re8 {[%clk
0:01:56.9]} 14. Re1 {[%clk 0:02:16.9]} 14... Kh8 {[%clk 0:01:46.3]} 15. Ba3
{[%clk 0:02:09.4]} 15... Qg5 {[%clk 0:01:29.6]} 16. Qf3 {[%clk 0:02:02]} 16...
Na6 {[%clk 0:01:08.3]} 17. Bxa6 {[%clk 0:01:56.2]} 17... bxa6 {[%clk 0:01:07.7]}
18. Rad1 {[%clk 0:01:47.2]} 18... Nf4 {[%clk 0:01:05.9]} 19. Bc1 {[%clk
0:01:42.9]} 19... Qh5 {[%clk 0:00:26]} 20. Qxf4 {[%clk 0:01:36.1]} 20... Rxe6
{[%clk 0:00:26.2]} 21. Be3 {[%clk 0:01:29.6]} 21... Rae8 {[%clk 0:00:25.1]} 22.
Rd7 {[%clk 0:01:24.9]} 22... Rg6 {[%clk 0:00:24.3]} 23. Qf7 {[%clk 0:01:18.4]}
23... Rb8 {[%clk 0:00:20.4]} 24. Bd4 {[%clk 0:01:10.7]} 24... Kh7 {[%clk
0:00:19.8]} 25. Bxg7 {[%clk 0:01:04]} 1-0

[Event "*** Titled Tuesday Blitz"]
[Site "Chess.com"]
[Date "2021.02.16"]
[Round "5"]
[White "GMJustin"]
[Black "NikolaMa2000"]
[Result "1-0"]
[WhiteElo "2312"]
[BlackElo "1917"]
[TimeControl "180+1"]
[EndTime "10:56:43 PST"]
[Termination "GMJustin won by resignation"]

1. d4 {[%clk 0:02:52.3]} 1... e6 {[%clk 0:02:59.4]} 2. e4 {[%clk 0:02:48.3]}
2... d5 {[%clk 0:02:58.6]} 3. Nd2 {[%clk 0:02:48.4]} 3... c5 {[%clk 0:02:58.3]}
4. dxc5 {[%clk 0:02:43.5]} 4... Bxc5 {[%clk 0:02:57.2]} 5. Bd3 {[%clk
0:02:42.1]} 5... Nc6 {[%clk 0:02:52.4]} 6. Ngf3 {[%clk 0:02:39.7]} 6... Nf6
{[%clk 0:02:46]} 7. Qe2 {[%clk 0:02:29.7]} 7... h6 {[%clk 0:02:31]} 8. O-O
{[%clk 0:02:24.9]} 8... O-O {[%clk 0:02:26.7]} 9. e5 {[%clk 0:02:11.8]} 9... Nd7
{[%clk 0:02:17.4]} 10. Nb3 {[%clk 0:02:10.2]} 10... Bb6 {[%clk 0:02:16.4]} 11.
c4 {[%clk 0:01:59.2]} 11... dxc4 {[%clk 0:02:06.5]} 12. Bxc4 {[%clk 0:02:00.1]}
12... Bc7 {[%clk 0:02:06.9]} 13. Bf4 {[%clk 0:01:48.8]} 13... a6 {[%clk
0:02:02.4]} 14. Qe4 {[%clk 0:01:46]} 14... Nb6 {[%clk 0:01:52.5]} 15. Rad1
{[%clk 0:01:34.8]} 15... Qe7 {[%clk 0:01:47.8]} 16. Bd3 {[%clk 0:01:33.4]} 16...
f5 {[%clk 0:01:29.6]} 17. exf6 {[%clk 0:01:33.1]} 17... Rxf6 {[%clk 0:01:29.5]}
18. Qh7+ {[%clk 0:01:28.5]} 18... Kf7 {[%clk 0:01:29]} 19. Bg5 {[%clk
0:01:04.8]} 19... hxg5 {[%clk 0:01:07.7]} 20. Nxg5+ {[%clk 0:01:04.5]} 20... Ke8
{[%clk 0:00:54.7]} 21. Bg6+ {[%clk 0:01:02.7]} 21... Rxg6 {[%clk 0:00:45.9]} 22.
Qxg6+ {[%clk 0:01:02.1]} 22... Kf8 {[%clk 0:00:43.1]} 23. Qh5 {[%clk 0:00:41.4]}
23... Qf6 {[%clk 0:00:31.5]} 24. Nh7+ {[%clk 0:00:40]} 1-0

[Event "*** Titled Tuesday Blitz"]
[Site "Chess.com"]
[Date "2021.02.16"]
[Round "5"]
[White "Julianos82"]
[Black "Fiona"]
[Result "1-0"]
[WhiteElo "2356"]
[BlackElo "2126"]
[TimeControl "180+1"]
[EndTime "10:56:44 PST"]
[Termination "Julianos82 won by resignation"]

1. d4 {[%clk 0:03:00.9]} 1... d6 {[%clk 0:02:58]} 2. Nf3 {[%clk 0:03:00.5]} 2...
Bg4 {[%clk 0:02:56.7]} 3. e4 {[%clk 0:02:59.9]} 3... Nf6 {[%clk 0:02:52.7]} 4.
h3 {[%clk 0:02:59]} 4... Bxf3 {[%clk 0:02:43]} 5. Qxf3 {[%clk 0:02:59.9]} 5...
Nbd7 {[%clk 0:02:43.1]} 6. Nc3 {[%clk 0:02:55.5]} 6... e5 {[%clk 0:02:33.7]} 7.
Be3 {[%clk 0:02:52.7]} 7... Be7 {[%clk 0:02:32.3]} 8. O-O-O {[%clk 0:02:51.6]}
8... c6 {[%clk 0:02:28.9]} 9. g4 {[%clk 0:02:48.1]} 9... O-O {[%clk 0:02:20.4]}
10. g5 {[%clk 0:02:45.3]} 10... Ne8 {[%clk 0:02:20.6]} 11. h4 {[%clk 0:02:44]}
11... Qa5 {[%clk 0:02:18.5]} 12. Kb1 {[%clk 0:02:36.1]} 12... b5 {[%clk
0:02:10.7]} 13. Qh3 {[%clk 0:02:22.4]} 13... exd4 {[%clk 0:02:01]} 14. Qxd7
{[%clk 0:02:13]} 14... dxc3 {[%clk 0:02:00.8]} 15. Qxe7 {[%clk 0:02:08.7]} 15...
Qb4 {[%clk 0:01:48]} 16. Bc1 {[%clk 0:02:03.2]} 16... a5 {[%clk 0:01:47.6]} 17.
Rh3 {[%clk 0:01:51]} 17... cxb2 {[%clk 0:01:40.1]} 18. Bxb2 {[%clk 0:01:44.1]}
18... a4 {[%clk 0:01:40.7]} 19. a3 {[%clk 0:01:30.8]} 19... Qc5 {[%clk
0:01:34.4]} 20. h5 {[%clk 0:01:27.6]} 20... b4 {[%clk 0:01:08.4]} 21. g6 {[%clk
0:01:26.6]} 21... h6 {[%clk 0:00:11.3]} 22. Rf3 {[%clk 0:01:07.2]} 22... f6
{[%clk 0:00:11.1]} 23. Bh3 {[%clk 0:00:59.6]} 23... Ra7 {[%clk 0:00:08.9]} 24.
Be6+ {[%clk 0:00:57.1]} 1-0

[Event "*** Titled Tuesday Blitz"]
[Site "Chess.com"]
[Date "2021.02.16"]
[Round "5"]
[White "OriTaichman"]
[Black "Chesswizard_2007"]
[Result "0-1"]
[WhiteElo "2550"]
[BlackElo "2722"]
[TimeControl "180+1"]
[EndTime "10:56:47 PST"]
[Termination "Chesswizard_2007 won by checkmate"]

1. e4 {[%clk 0:03:00.9]} 1... e5 {[%clk 0:02:54.5]} 2. d4 {[%clk 0:02:55.8]}
2... exd4 {[%clk 0:02:53.3]} 3. Qxd4 {[%clk 0:02:49.5]} 3... Nc6 {[%clk
0:02:52]} 4. Qe3 {[%clk 0:02:49.9]} 4... Nf6 {[%clk 0:02:50.8]} 5. Nc3 {[%clk
0:02:50]} 5... Bb4 {[%clk 0:02:50.6]} 6. Bd2 {[%clk 0:02:44.2]} 6... d6 {[%clk
0:02:50.9]} 7. O-O-O {[%clk 0:02:44.3]} 7... Be6 {[%clk 0:02:50.9]} 8. f4 {[%clk
0:02:43.6]} 8... Qe7 {[%clk 0:02:47.5]} 9. Nf3 {[%clk 0:02:24.5]} 9... O-O-O
{[%clk 0:02:43.8]} 10. Bb5 {[%clk 0:02:18.6]} 10... Bc5 {[%clk 0:02:42.2]} 11.
Qe1 {[%clk 0:02:02.9]} 11... Nb8 {[%clk 0:02:35.9]} 12. Na4 {[%clk 0:01:34.7]}
12... a6 {[%clk 0:02:19.8]} 13. Bd3 {[%clk 0:01:30.7]} 13... Ba7 {[%clk
0:02:18.5]} 14. a3 {[%clk 0:01:23.9]} 14... Rhe8 {[%clk 0:02:15.5]} 15. Qh4
{[%clk 0:01:08.9]} 15... h6 {[%clk 0:02:09.6]} 16. h3 {[%clk 0:01:05.4]} 16...
Nc6 {[%clk 0:02:09.5]} 17. Rhe1 {[%clk 0:01:04.4]} 17... Nd4 {[%clk 0:01:57.9]}
18. Nxd4 {[%clk 0:00:46.1]} 18... Bxd4 {[%clk 0:01:58.8]} 19. e5 {[%clk
0:00:36]} 19... dxe5 {[%clk 0:01:54.6]} 20. fxe5 {[%clk 0:00:35.3]} 20... Ng8
{[%clk 0:01:52.1]} 21. Qg3 {[%clk 0:00:27.8]} 21... g6 {[%clk 0:01:46.8]} 22.
Nc3 {[%clk 0:00:19.2]} 22... Qc5 {[%clk 0:01:39]} 23. Kb1 {[%clk 0:00:11.6]}
23... Qb6 {[%clk 0:01:37.5]} 24. Na4 {[%clk 0:00:03]} 24... Qa7 {[%clk
0:01:36.4]} 25. Bc3 {[%clk 0:00:02.6]} 25... Bf2 {[%clk 0:01:36.2]} 26. Qf3
{[%clk 0:00:02.2]} 26... Bxe1 {[%clk 0:01:36.1]} 27. Rxe1 {[%clk 0:00:02.9]}
27... Ne7 {[%clk 0:01:36.4]} 28. Bb4 {[%clk 0:00:02.5]} 28... Nd5 {[%clk
0:01:36.4]} 29. Bc5 {[%clk 0:00:02.8]} 29... Qb8 {[%clk 0:01:34.8]} 30. Be4
{[%clk 0:00:02.4]} 30... b6 {[%clk 0:01:34]} 31. Bxd5 {[%clk 0:00:02.9]} 31...
Bxd5 {[%clk 0:01:33.8]} 32. Qc3 {[%clk 0:00:03.4]} 32... bxc5 {[%clk 0:01:33.2]}
33. Qxc5 {[%clk 0:00:04.3]} 33... Qb5 {[%clk 0:01:31.9]} 34. Qa7 {[%clk
0:00:04.7]} 34... Qb7 {[%clk 0:01:32.2]} 35. Qc5 {[%clk 0:00:04.9]} 35... Be6
{[%clk 0:01:30.9]} 36. Re3 {[%clk 0:00:04.6]} 36... Rd5 {[%clk 0:01:30.8]} 37.
Qc3 {[%clk 0:00:03.6]} 37... Rd1# {[%clk 0:01:30.7]} 0-1

[Event "*** Titled Tuesday Blitz"]
[Site "Chess.com"]
[Date "2021.02.16"]
[Round "5"]
[White "FairChess_on_YouTube"]
[Black "GregShahade"]
[Result "1-0"]
[WhiteElo "2931"]
[BlackElo "2655"]
[TimeControl "180+1"]
[EndTime "10:56:48 PST"]
[Termination "FairChess_on_YouTube won by checkmate"]

1. d4 {[%clk 0:03:00.9]} 1... Nf6 {[%clk 0:02:59.7]} 2. c4 {[%clk 0:03:00.1]}
2... g6 {[%clk 0:02:59.6]} 3. Nc3 {[%clk 0:02:59.8]} 3... d5 {[%clk 0:02:59.7]}
4. cxd5 {[%clk 0:02:59.6]} 4... Nxd5 {[%clk 0:03:00.6]} 5. e4 {[%clk 0:03:00]}
5... Nxc3 {[%clk 0:03:01]} 6. bxc3 {[%clk 0:03:00.8]} 6... Bg7 {[%clk
0:03:01.5]} 7. Nf3 {[%clk 0:03:01.3]} 7... c5 {[%clk 0:03:01.8]} 8. Be2 {[%clk
0:03:01.8]} 8... Nc6 {[%clk 0:02:59.2]} 9. d5 {[%clk 0:03:01.7]} 9... Bxc3+
{[%clk 0:02:58.3]} 10. Bd2 {[%clk 0:03:02]} 10... Bxa1 {[%clk 0:02:59]} 11. Qxa1
{[%clk 0:03:02.4]} 11... Nd4 {[%clk 0:02:58.9]} 12. Nxd4 {[%clk 0:03:02.9]}
12... cxd4 {[%clk 0:02:59.7]} 13. Qxd4 {[%clk 0:03:02.9]} 13... O-O {[%clk
0:02:58.1]} 14. O-O {[%clk 0:03:03.1]} 14... Qb6 {[%clk 0:02:49.6]} 15. Qa1
{[%clk 0:03:03]} 15... Bd7 {[%clk 0:02:44]} 16. Bh6 {[%clk 0:02:56.9]} 16... f6
{[%clk 0:02:43.8]} 17. Rb1 {[%clk 0:02:44.1]} 17... Qc7 {[%clk 0:02:42.3]} 18.
Bxf8 {[%clk 0:02:40.3]} 18... Kxf8 {[%clk 0:02:38.2]} 19. Qd4 {[%clk 0:02:36.4]}
19... b6 {[%clk 0:02:29.6]} 20. Ba6 {[%clk 0:02:26.4]} 20... Bc8 {[%clk
0:02:22.8]} 21. Bb5 {[%clk 0:02:18.1]} 21... Bd7 {[%clk 0:02:18.4]} 22. d6
{[%clk 0:02:13]} 22... Qb7 {[%clk 0:01:09.5]} 23. dxe7+ {[%clk 0:01:32.2]} 23...
Kxe7 {[%clk 0:01:10.4]} 24. Bc4 {[%clk 0:01:31.5]} 24... Be6 {[%clk 0:01:00.8]}
25. e5 {[%clk 0:01:17.7]} 25... Bxc4 {[%clk 0:00:50.6]} 26. exf6+ {[%clk
0:01:16.5]} 26... Kf7 {[%clk 0:00:48.8]} 27. Qxc4+ {[%clk 0:01:16.4]} 27... Kxf6
{[%clk 0:00:49.3]} 28. Re1 {[%clk 0:01:15.3]} 28... Qd7 {[%clk 0:00:47.1]} 29.
Qh4+ {[%clk 0:01:14.6]} 29... g5 {[%clk 0:00:39.5]} 30. Qh6+ {[%clk 0:01:14.2]}
30... Kf5 {[%clk 0:00:40.1]} 31. h3 {[%clk 0:00:57.1]} 31... Qf7 {[%clk
0:00:22.5]} 32. g4+ {[%clk 0:00:54.6]} 32... Kf4 {[%clk 0:00:22.1]} 33. Qd6+
{[%clk 0:00:54.9]} 33... Kf3 {[%clk 0:00:22.2]} 34. Re3# {[%clk 0:00:54.7]} 1-0

[Event "*** Titled Tuesday Blitz"]
[Site "Chess.com"]
[Date "2021.02.16"]
[Round "5"]
[White "muchojogo"]
[Black "maxip32"]
[Result "0-1"]
[WhiteElo "2339"]
[BlackElo "2507"]
[TimeControl "180+1"]
[EndTime "10:56:56 PST"]
[Termination "maxip32 won by resignation"]

1. e4 {[%clk 0:03:00.9]} 1... c5 {[%clk 0:02:59.3]} 2. Nf3 {[%clk 0:03:00.3]}
2... d6 {[%clk 0:02:59.1]} 3. d4 {[%clk 0:03:01]} 3... cxd4 {[%clk 0:03:00]} 4.
Nxd4 {[%clk 0:03:01.7]} 4... Nf6 {[%clk 0:03:00.2]} 5. Nc3 {[%clk 0:03:02.4]}
5... a6 {[%clk 0:03:00.4]} 6. Bg5 {[%clk 0:03:02.9]} 6... e6 {[%clk 0:02:59.8]}
7. f4 {[%clk 0:03:03.5]} 7... Nbd7 {[%clk 0:02:59.8]} 8. Qf3 {[%clk 0:03:03.1]}
8... h6 {[%clk 0:02:59.6]} 9. Bh4 {[%clk 0:03:01.1]} 9... e5 {[%clk 0:02:59.9]}
10. Nf5 {[%clk 0:02:34.7]} 10... exf4 {[%clk 0:02:59.8]} 11. Qxf4 {[%clk
0:02:01.7]} 11... g5 {[%clk 0:02:58]} 12. Nxd6+ {[%clk 0:02:01.9]} 12... Bxd6
{[%clk 0:02:57.7]} 13. Qxd6 {[%clk 0:02:02.8]} 13... gxh4 {[%clk 0:02:53.4]} 14.
O-O-O {[%clk 0:02:02.8]} 14... Qe7 {[%clk 0:02:46.6]} 15. Qf4 {[%clk 0:02:00.2]}
15... Qe5 {[%clk 0:02:44]} 16. Qxh4 {[%clk 0:01:59.4]} 16... Qg5+ {[%clk
0:02:44]} 17. Qxg5 {[%clk 0:01:57.1]} 17... hxg5 {[%clk 0:02:44.9]} 18. Bc4
{[%clk 0:01:53.1]} 18... Ne5 {[%clk 0:02:42.2]} 19. Bd5 {[%clk 0:01:42.4]} 19...
Nfg4 {[%clk 0:02:13.9]} 20. Rdf1 {[%clk 0:01:33.3]} 20... Rxh2 {[%clk
0:02:10.1]} 21. Rxh2 {[%clk 0:01:27.6]} 21... Nxh2 {[%clk 0:02:09.8]} 22. Rh1
{[%clk 0:01:23.1]} 22... Nhg4 {[%clk 0:02:07]} 23. Rh8+ {[%clk 0:01:22.2]} 23...
Ke7 {[%clk 0:02:07]} 24. Na4 {[%clk 0:01:19.1]} 24... Ng6 {[%clk 0:01:55.6]} 25.
Rh5 {[%clk 0:00:59.3]} 25... Kf6 {[%clk 0:01:32.9]} 26. Nb6 {[%clk 0:00:57.7]}
26... Rb8 {[%clk 0:01:31.4]} 27. Rh1 {[%clk 0:00:44.6]} 27... Be6 {[%clk
0:01:22]} 28. Rf1+ {[%clk 0:00:36.2]} 28... Ke7 {[%clk 0:01:20]} 29. c4 {[%clk
0:00:36.5]} 29... Ne3 {[%clk 0:01:14.2]} 30. Rf2 {[%clk 0:00:34.5]} 30... Nf4
{[%clk 0:01:14.3]} 31. Kd2 {[%clk 0:00:31.2]} 31... Nexg2 {[%clk 0:01:12.5]} 32.
e5 {[%clk 0:00:28.6]} 32... Nh4 {[%clk 0:01:09.8]} 33. b4 {[%clk 0:00:21.8]}
33... Rd8 {[%clk 0:01:08.7]} 34. Kc3 {[%clk 0:00:15.8]} 34... Bxd5 {[%clk
0:01:06.6]} 0-1

[Event "*** Titled Tuesday Blitz"]
[Site "Chess.com"]
[Date "2021.02.16"]
[Round "5"]
[White "Fusikk"]
[Black "Kislov_Oleg"]
[Result "1-0"]
[WhiteElo "2709"]
[BlackElo "2533"]
[TimeControl "180+1"]
[EndTime "10:56:57 PST"]
[Termination "Fusikk won by resignation"]

1. e4 {[%clk 0:03:00.9]} 1... c5 {[%clk 0:02:58.3]} 2. Nf3 {[%clk 0:03:00.8]}
2... Nc6 {[%clk 0:02:58.6]} 3. Bb5 {[%clk 0:03:00.7]} 3... g6 {[%clk 0:02:57.9]}
4. O-O {[%clk 0:02:59]} 4... Bg7 {[%clk 0:02:58.3]} 5. c3 {[%clk 0:02:59.5]}
5... Nf6 {[%clk 0:02:57]} 6. Re1 {[%clk 0:02:54.8]} 6... O-O {[%clk 0:02:54.1]}
7. d4 {[%clk 0:02:55]} 7... cxd4 {[%clk 0:02:53.5]} 8. cxd4 {[%clk 0:02:55.9]}
8... d5 {[%clk 0:02:53.6]} 9. e5 {[%clk 0:02:55.2]} 9... Ne4 {[%clk 0:02:54.1]}
10. Bxc6 {[%clk 0:02:53.1]} 10... bxc6 {[%clk 0:02:54]} 11. Be3 {[%clk
0:02:53.8]} 11... Rb8 {[%clk 0:02:35.4]} 12. Qc1 {[%clk 0:02:53.3]} 12... Qb6
{[%clk 0:02:33.8]} 13. b3 {[%clk 0:02:51.6]} 13... f6 {[%clk 0:02:19.1]} 14. Nc3
{[%clk 0:02:37.1]} 14... Bg4 {[%clk 0:02:04.4]} 15. Na4 {[%clk 0:02:29.9]} 15...
Qc7 {[%clk 0:01:57.1]} 16. exf6 {[%clk 0:02:28.3]} 16... exf6 {[%clk 0:01:45.2]}
17. Nd2 {[%clk 0:02:28.2]} 17... Bd7 {[%clk 0:01:13.4]} 18. Nxe4 {[%clk
0:02:22.6]} 18... dxe4 {[%clk 0:01:13.6]} 19. Bf4 {[%clk 0:02:23.2]} 19... Qa5
{[%clk 0:01:10.1]} 20. Bxb8 {[%clk 0:02:21.4]} 20... Rxb8 {[%clk 0:01:11]} 21.
Nc5 {[%clk 0:02:21.6]} 21... Bf5 {[%clk 0:01:04.7]} 22. Nxe4 {[%clk 0:02:18.3]}
22... Qd5 {[%clk 0:00:58.6]} 23. Qc4 {[%clk 0:02:14.2]} 23... Rd8 {[%clk
0:00:52.9]} 24. Qxd5+ {[%clk 0:02:08]} 24... Rxd5 {[%clk 0:00:50.1]} 25. Rad1
{[%clk 0:02:08]} 25... Bxe4 {[%clk 0:00:35.1]} 26. Rxe4 {[%clk 0:02:07.5]} 26...
f5 {[%clk 0:00:35.9]} 27. Re6 {[%clk 0:02:07.6]} 27... Bxd4 {[%clk 0:00:35.8]}
28. Kf1 {[%clk 0:02:04.9]} 28... c5 {[%clk 0:00:33.6]} 29. Re7 {[%clk 0:02:02]}
29... a5 {[%clk 0:00:33.4]} 30. Ra7 {[%clk 0:01:59.4]} 30... Rd6 {[%clk
0:00:24.8]} 31. Re1 {[%clk 0:01:57.2]} 31... Rd8 {[%clk 0:00:23.5]} 32. Ree7
{[%clk 0:01:44.2]} 32... Bc3 {[%clk 0:00:20.5]} 33. Rad7 {[%clk 0:01:32.6]}
33... Ra8 {[%clk 0:00:17.8]} 34. Rd3 {[%clk 0:01:30.8]} 34... Bd4 {[%clk
0:00:17.1]} 35. Rb7 {[%clk 0:01:21.6]} 35... a4 {[%clk 0:00:17.3]} 36. b4 {[%clk
0:01:21.5]} 36... Rc8 {[%clk 0:00:12.1]} 37. bxc5 {[%clk 0:01:19.5]} 37... Bxc5
{[%clk 0:00:08]} 38. Rc3 {[%clk 0:01:18.1]} 1-0

[Event "*** Titled Tuesday Blitz"]
[Site "Chess.com"]
[Date "2021.02.16"]
[Round "5"]
[White "ChampStan"]
[Black "Smirnov_Pavel"]
[Result "0-1"]
[WhiteElo "2270"]
[BlackElo "2885"]
[TimeControl "180+1"]
[EndTime "10:56:57 PST"]
[Termination "Smirnov_Pavel won by resignation"]

1. d4 {[%clk 0:02:48.6]} 1... Nf6 {[%clk 0:02:59.2]} 2. c4 {[%clk 0:02:48.1]}
2... e6 {[%clk 0:02:59.4]} 3. Nc3 {[%clk 0:02:41.2]} 3... Bb4 {[%clk 0:02:58.3]}
4. Qc2 {[%clk 0:02:40.5]} 4... O-O {[%clk 0:02:55.5]} 5. a3 {[%clk 0:02:37.6]}
5... Bxc3+ {[%clk 0:02:54.4]} 6. Qxc3 {[%clk 0:02:37.4]} 6... d6 {[%clk
0:02:55.3]} 7. Bg5 {[%clk 0:02:33.3]} 7... Nbd7 {[%clk 0:02:53.5]} 8. Nf3 {[%clk
0:02:32.4]} 8... b6 {[%clk 0:02:51.6]} 9. e3 {[%clk 0:02:31.6]} 9... Bb7 {[%clk
0:02:51.5]} 10. Bd3 {[%clk 0:02:27.6]} 10... Rc8 {[%clk 0:02:51]} 11. Rd1 {[%clk
0:02:22.5]} 11... c5 {[%clk 0:02:46.8]} 12. dxc5 {[%clk 0:02:16.4]} 12... Rxc5
{[%clk 0:02:47.7]} 13. Bxf6 {[%clk 0:01:44.4]} 13... Nxf6 {[%clk 0:02:44.7]} 14.
b4 {[%clk 0:01:33.5]} 14... Rc7 {[%clk 0:02:42.2]} 15. Qb2 {[%clk 0:01:21.1]}
15... Qe7 {[%clk 0:02:40.3]} 16. Be2 {[%clk 0:01:13.8]} 16... Rfc8 {[%clk
0:02:37.9]} 17. O-O {[%clk 0:01:13.6]} 17... d5 {[%clk 0:02:37.6]} 18. Nd4
{[%clk 0:00:30]} 18... dxc4 {[%clk 0:02:34.5]} 19. Nb5 {[%clk 0:00:30.3]} 19...
c3 {[%clk 0:02:31.4]} 20. Qc2 {[%clk 0:00:30.3]} 20... Be4 {[%clk 0:02:29.2]}
21. Bd3 {[%clk 0:00:29.9]} 21... Bxd3 {[%clk 0:02:21.4]} 22. Rxd3 {[%clk
0:00:29.6]} 22... Rc6 {[%clk 0:02:21.7]} 23. Rfd1 {[%clk 0:00:18.2]} 23... Nd5
{[%clk 0:02:20.5]} 24. e4 {[%clk 0:00:15.3]} 24... Nf6 {[%clk 0:02:15]} 25. f3
{[%clk 0:00:14.1]} 25... h6 {[%clk 0:02:08]} 26. Nd6 {[%clk 0:00:08.3]} 26...
R8c7 {[%clk 0:02:00]} 27. Nb5 {[%clk 0:00:08.7]} 27... Rc8 {[%clk 0:01:54.8]}
28. Nd6 {[%clk 0:00:09]} 28... Rb8 {[%clk 0:01:54.3]} 29. Nb5 {[%clk 0:00:09.1]}
29... a6 {[%clk 0:01:48]} 30. Nxc3 {[%clk 0:00:08.8]} 30... a5 {[%clk
0:01:47.5]} 31. Qb3 {[%clk 0:00:07.6]} 31... Rbc8 {[%clk 0:01:47]} 32. Nb5
{[%clk 0:00:05.5]} 32... Nh5 {[%clk 0:01:43.3]} 33. Nd6 {[%clk 0:00:04.8]} 33...
Rf8 {[%clk 0:01:37.5]} 34. bxa5 {[%clk 0:00:04.8]} 34... Nf4 {[%clk 0:01:36.4]}
35. R3d2 {[%clk 0:00:04.1]} 35... Qg5 {[%clk 0:01:31.5]} 36. Kh1 {[%clk
0:00:02.5]} 36... Rxd6 {[%clk 0:01:29.5]} 0-1

[Event "*** Titled Tuesday Blitz"]
[Site "Chess.com"]
[Date "2021.02.16"]
[Round "5"]
[White "Piccadilly123"]
[Black "JoliyRoger"]
[Result "0-1"]
[WhiteElo "2257"]
[BlackElo "2424"]
[TimeControl "180+1"]
[EndTime "10:56:59 PST"]
[Termination "JoliyRoger won by resignation"]

1. e4 {[%clk 0:03:00.9]} 1... c6 {[%clk 0:02:59.8]} 2. Nc3 {[%clk 0:03:00.4]}
2... d5 {[%clk 0:03:00.7]} 3. d4 {[%clk 0:03:01.3]} 3... h6 {[%clk 0:03:00.2]}
4. f3 {[%clk 0:02:49.1]} 4... dxe4 {[%clk 0:02:59.3]} 5. fxe4 {[%clk 0:02:49.6]}
5... e5 {[%clk 0:02:59.1]} 6. dxe5 {[%clk 0:02:45.5]} 6... Qxd1+ {[%clk
0:02:57.1]} 7. Nxd1 {[%clk 0:02:45.1]} 7... Ne7 {[%clk 0:02:54.5]} 8. Nf3 {[%clk
0:02:43.8]} 8... Ng6 {[%clk 0:02:54.9]} 9. g3 {[%clk 0:02:38.6]} 9... Bg4 {[%clk
0:02:51.5]} 10. Be2 {[%clk 0:02:35]} 10... Bxf3 {[%clk 0:02:51.7]} 11. Bxf3
{[%clk 0:02:34.8]} 11... Nxe5 {[%clk 0:02:52.4]} 12. O-O {[%clk 0:02:31.1]}
12... Bc5+ {[%clk 0:02:46]} 13. Kg2 {[%clk 0:02:30.3]} 13... Nbd7 {[%clk
0:02:45.3]} 14. Be2 {[%clk 0:02:29.9]} 14... O-O {[%clk 0:02:42.9]} 15. Ne3
{[%clk 0:02:17.7]} 15... Rfe8 {[%clk 0:02:37.3]} 16. Nf5 {[%clk 0:02:10.4]}
16... Rad8 {[%clk 0:02:26.7]} 17. Bf4 {[%clk 0:01:35.8]} 17... Ng6 {[%clk
0:02:24.6]} 18. Bd3 {[%clk 0:01:27]} 18... Nde5 {[%clk 0:02:18.4]} 19. Rad1
{[%clk 0:01:20.5]} 19... Ng4 {[%clk 0:02:03.9]} 20. Rde1 {[%clk 0:01:06.1]}
20... Bb4 {[%clk 0:01:57]} 21. Re2 {[%clk 0:01:03.1]} 21... N4e5 {[%clk
0:01:55.9]} 22. Re3 {[%clk 0:00:54.7]} 22... Bc5 {[%clk 0:01:36.6]} 23. Be2
{[%clk 0:00:35.7]} 23... Nxf4+ {[%clk 0:01:08.4]} 24. gxf4 {[%clk 0:00:33]}
24... Bxe3 {[%clk 0:01:09]} 25. Nxe3 {[%clk 0:00:30.6]} 25... Rd2 {[%clk
0:00:52.8]} 26. Re1 {[%clk 0:00:22.4]} 26... Ng6 {[%clk 0:00:50]} 27. Kf3 {[%clk
0:00:22.6]} 27... Nh4+ {[%clk 0:00:47.5]} 28. Kg3 {[%clk 0:00:19]} 28... Rxe4
{[%clk 0:00:47.1]} 29. Kxh4 {[%clk 0:00:17.9]} 29... Rxe3 {[%clk 0:00:47.3]} 0-1